bitfinex/quotes_SOLUSD_20230402
["timestamp","ask_amount","ask_price","bid_price","bid_amount"]
[1680477332565,17.0,20.511,20.498,20.0]
[1680477337369,10.0,20.512,20.498,20.0]
[1680477337559,17.0,20.513,20.499,10.0]
[1680477345578,129.28048475,20.515,20.501,10.0]
[1680477352878,129.28048475,20.515,20.499,10.0]
[1680477353061,129.28048475,20.515,20.501,10.0]
[1680477357689,129.28048475,20.515,20.499,10.0]
[1680477357886,10.0,20.513,20.498,20.0]
[1680477358091,10.0,20.511,20.498,20.0]
[1680477361295,17.0,20.51,20.498,20.0]
[1680477361495,10.0,20.509,20.498,20.0]
[1680477361877,10.0,20.507,20.497,10.0]
[1680477362089,17.0,20.508,20.499,20.0]
[1680477362678,10.0,20.508,20.499,20.0]
[1680477362878,17.0,20.507,20.499,10.0]
[1680477363385,17.0,20.508,20.499,10.0]
[1680477363894,17.0,20.508,20.498,20.0]
[1680477364595,10.0,20.508,20.498,20.0]
[1680477364893,17.0,20.507,20.498,20.0]
[1680477365495,10.0,20.508,20.498,20.0]
[1680477365796,17.0,20.507,20.498,20.0]
[1680477366295,17.0,20.508,20.498,20.0]
[1680477368596,10.0,20.508,20.498,20.0]
[1680477368798,17.0,20.507,20.498,20.0]
[1680477370200,28.09,20.51,20.498,20.0]
[1680477370385,17.0,20.509,20.498,20.0]
[1680477372602,17.0,20.509,20.499,10.0]
[1680477374510,17.0,20.509,20.498,20.0]
[1680477375084,17.0,20.509,20.497,10.0]
[1680477375292,17.0,20.509,20.499,10.0]
[1680477375600,17.0,20.509,20.497,10.0]
[1680477375897,17.0,20.509,20.498,20.0]
[1680477376110,10.0,20.508,20.498,20.0]
[1680477376400,10.0,20.506,20.498,20.0]
[1680477376584,10.0,20.506,20.493,124.45416023]
[1680477376585,10.0,20.506,20.494,20.0]
[1680477376786,17.0,20.505,20.494,20.0]
[1680477376981,17.0,20.505,20.486,114.7264]
[1680477376982,10.0,20.504,20.489,93.31954103]
[1680477377186,17.0,20.503,20.489,93.31954103]
[1680477377387,17.0,20.503,20.491,37.0]
[1680477382293,10.0,20.504,20.492,10.0]
[1680477382510,17.0,20.503,20.492,10.0]
[1680477382700,17.0,20.505,20.492,10.0]
[1680477383021,10.0,20.506,20.492,10.0]
[1680477383713,17.0,20.507,20.492,10.0]
[1680477384005,28.21,20.51,20.492,17.29416023]
[1680477384310,28.21,20.51,20.494,10.0]
[1680477386312,10.0,20.507,20.494,10.0]
[1680477387112,17.0,20.508,20.494,10.0]
[1680477387315,17.0,20.509,20.494,10.0]
[1680477388113,17.0,20.509,20.493,234.2466]
[1680477388114,10.0,20.508,20.493,234.2466]
[1680477388411,10.0,20.506,20.493,234.2466]
[1680477388637,10.0,20.504,20.493,234.2466]
[1680477388915,10.0,20.506,20.493,234.2466]
[1680477389216,17.0,20.505,20.493,234.2466]
[1680477389415,17.0,20.505,20.494,10.0]
[1680477390015,17.0,20.507,20.494,10.0]
[1680477390212,17.0,20.508,20.494,10.0]
[1680477391813,17.0,20.509,20.494,10.0]
[1680477399311,10.0,20.514,20.496,10.0]
[1680477399626,20.0,20.509,20.496,10.0]
[1680477403608,10.0,20.507,20.496,10.0]
[1680477403923,27.0,20.508,20.496,10.0]
[1680477404117,17.0,20.508,20.496,10.0]
[1680477407829,17.0,20.508,20.493,234.2466]
[1680477408013,10.0,20.507,20.493,234.2466]
[1680477408216,17.0,20.506,20.493,234.2466]
[1680477408413,17.0,20.506,20.494,10.0]
[1680477409021,17.0,20.507,20.494,10.0]
[1680477410010,10.0,20.507,20.494,10.0]
[1680477410414,27.0,20.508,20.494,10.0]
[1680477411135,17.0,20.508,20.494,10.0]
[1680477418640,17.0,20.508,20.492,19.50408]
[1680477419137,10.0,20.507,20.492,19.50408]
[1680477419342,28.31,20.5,20.492,19.50408]
[1680477419841,27.0,20.499,20.492,19.50408]
[1680477420632,17.0,20.499,20.492,19.50408]
[1680477423723,17.0,20.499,20.486,10.0]
[1680477423922,17.0,20.499,20.488,10.0]
[1680477424325,17.0,20.499,20.49,10.0]
[1680477424838,17.0,20.499,20.488,10.0]
[1680477425036,17.0,20.499,20.49,10.0]
[1680477425937,17.0,20.499,20.489,20.0]
[1680477428027,17.0,20.499,20.488,10.0]
[1680477428335,17.0,20.499,20.489,20.0]
[1680477429445,17.0,20.499,20.488,10.0]
[1680477429627,17.0,20.499,20.489,20.0]
[1680477431833,10.0,20.506,20.489,20.0]
[1680477432036,17.0,20.505,20.49,10.0]
[1680477432224,10.0,20.504,20.49,10.0]
[1680477432428,10.0,20.502,20.49,10.0]
[1680477432841,10.0,20.5,20.49,10.0]
[1680477433731,17.0,20.501,20.49,10.0]
[1680477436149,17.0,20.501,20.489,20.0]
[1680477442441,17.0,20.501,20.488,20.0]
[1680477442645,17.0,20.501,20.489,10.0]
[1680477443649,10.0,20.499,20.487,19.508873]
[1680477443849,17.0,20.498,20.487,19.508873]
[1680477445456,10.0,20.498,20.487,19.508873]
[1680477445751,17.0,20.497,20.487,19.508873]
[1680477446160,17.0,20.499,20.487,19.508873]
[1680477446362,10.0,20.498,20.487,19.508873]
[1680477446562,10.0,20.496,20.487,19.508873]
[1680477446940,17.0,20.495,20.487,19.508873]
[1680477448353,10.0,20.496,20.487,19.508873]
[1680477448553,17.0,20.495,20.487,19.508873]
[1680477449059,17.0,20.495,20.482,131.9201958]
[1680477449351,17.0,20.497,20.482,131.9201958]
[1680477449748,10.0,20.496,20.482,117.3615]
[1680477449948,17.0,20.495,20.482,117.3615]
[1680477452058,28.2,20.5,20.482,117.3615]
[1680477452252,10.0,20.498,20.482,117.3615]
[1680477453041,10.0,20.499,20.482,117.3615]
[1680477453450,10.0,20.497,20.482,117.3615]
[1680477453953,17.0,20.498,20.482,117.3615]
[1680477454152,17.0,20.498,20.482,127.3615]
[1680477454854,10.0,20.498,20.482,127.3615]
[1680477455453,17.0,20.497,20.482,117.3615]
[1680477455844,10.0,20.496,20.482,117.3615]
[1680477456264,10.0,20.494,20.482,117.3615]
[1680477456561,17.0,20.493,20.482,117.3615]
[1680477457056,10.0,20.494,20.482,117.3615]
[1680477457254,17.0,20.493,20.482,117.3615]
[1680477458261,10.0,20.494,20.482,117.3615]
[1680477458462,17.0,20.493,20.482,117.3615]
[1680477458653,17.0,20.495,20.482,117.3615]
[1680477458854,17.0,20.495,20.483,10.0]
[1680477461158,10.0,20.496,20.483,10.0]
[1680477461359,10.0,20.494,20.483,10.0]
[1680477461548,17.0,20.493,20.483,10.0]
[1680477462454,10.0,20.494,20.483,10.0]
[1680477462658,17.0,20.493,20.483,10.0]
[1680477463259,17.0,20.495,20.483,10.0]
[1680477465067,10.0,20.496,20.483,10.0]
[1680477465255,10.0,20.494,20.483,10.0]
[1680477465458,17.0,20.493,20.483,10.0]
[1680477465677,17.0,20.495,20.483,10.0]
[1680477467571,10.0,20.496,20.483,10.0]
[1680477467764,17.0,20.495,20.483,10.0]
[1680477468174,10.0,20.496,20.483,10.0]
[1680477468377,17.0,20.495,20.483,10.0]
[1680477469773,17.0,20.497,20.483,10.0]
[1680477469970,56.51,20.5,20.483,10.0]
[1680477470288,20.0,20.499,20.483,10.0]
[1680477470576,20.0,20.499,20.485,10.0]
[1680477470781,10.0,20.501,20.485,10.0]
[1680477470965,20.0,20.5,20.485,10.0]
[1680477479576,10.0,20.498,20.485,10.0]
[1680477479964,10.0,20.498,20.483,10.0]
[1680477484279,17.0,20.499,20.483,10.0]
[1680477485480,27.0,20.499,20.483,10.0]
[1680477485780,10.0,20.498,20.482,117.3615]
[1680477485967,17.0,20.497,20.482,117.3615]
[1680477486165,10.0,20.496,20.482,117.3615]
[1680477486366,10.0,20.494,20.482,117.3615]
[1680477486567,10.0,20.492,20.482,117.3615]
[1680477486876,17.0,20.491,20.482,117.3615]
[1680477487980,10.0,20.492,20.482,117.3615]
[1680477488172,17.0,20.491,20.482,117.3615]
[1680477488773,17.0,20.493,20.482,117.3615]
[1680477489478,86.51,20.5,20.483,10.0]
[1680477489681,10.0,20.499,20.483,10.0]
[1680477490669,10.0,20.499,20.482,117.3615]
[1680477490874,17.0,20.498,20.482,117.3615]
[1680477491276,10.0,20.497,20.482,117.3615]
[1680477491473,17.0,20.496,20.483,10.0]
[1680477492279,10.0,20.497,20.483,10.0]
[1680477493581,10.0,20.495,20.483,10.0]
[1680477493783,10.0,20.493,20.483,10.0]
[1680477494389,17.0,20.494,20.483,10.0]
[1680477496586,10.0,20.497,20.483,10.0]
[1680477496587,10.0,20.495,20.483,10.0]
[1680477496791,10.0,20.493,20.482,117.3615]
[1680477497894,17.0,20.494,20.482,117.3615]
[1680477498073,17.0,20.494,20.483,10.0]
[1680477498278,10.0,20.495,20.483,10.0]
[1680477498473,17.0,20.494,20.483,10.0]
[1680477501483,10.0,20.495,20.483,10.0]
[1680477501692,17.0,20.494,20.483,10.0]
[1680477504284,10.0,20.495,20.483,10.0]
[1680477504489,17.0,20.494,20.483,10.0]
[1680477504889,17.0,20.494,20.482,117.3615]
[1680477509589,10.0,20.495,20.483,10.0]
[1680477509795,17.0,20.494,20.483,10.0]
[1680477511415,17.0,20.494,20.482,117.3615]
[1680477512314,10.0,20.497,20.482,117.3615]
[1680477512524,20.0,20.5,20.482,124.65566023]
[1680477512719,20.0,20.502,20.483,27.0]
[1680477513014,20.0,20.502,20.484,7.29416023]
[1680477513317,10.0,20.501,20.486,10.0]
[1680477513508,10.0,20.499,20.486,10.0]
[1680477514416,20.0,20.5,20.486,10.0]
[1680477516511,10.0,20.501,20.486,10.0]
[1680477516713,37.0,20.5,20.486,10.0]
[1680477526328,37.0,20.5,20.483,10.0]
[1680477526628,10.0,20.499,20.483,10.0]
[1680477526835,10.0,20.497,20.483,10.0]
[1680477527921,17.0,20.498,20.483,10.0]
[1680477532233,48.31,20.5,20.483,10.0]
[1680477532531,48.31,20.5,20.485,10.0]
[1680477532732,48.31,20.5,20.487,10.0]
[1680477540740,48.31,20.5,20.485,10.0]
[1680477540954,10.0,20.498,20.485,10.0]
[1680477541129,17.0,20.497,20.485,10.0]
[1680477542536,10.0,20.497,20.485,10.0]
[1680477545045,17.0,20.498,20.485,10.0]
[1680477547331,10.0,20.498,20.485,10.0]
[1680477547533,10.0,20.496,20.485,10.0]
[1680477547843,10.0,20.498,20.485,10.0]
[1680477548032,10.0,20.496,20.485,10.0]
[1680477548526,10.0,20.498,20.485,10.0]
[1680477548841,17.0,20.497,20.485,10.0]
[1680477550237,10.0,20.497,20.485,10.0]
[1680477552543,17.0,20.498,20.485,10.0]
[1680477555044,10.0,20.498,20.482,117.3615]
[1680477555247,17.0,20.497,20.482,117.3615]
[1680477555426,10.0,20.496,20.482,117.3615]
[1680477555743,10.0,20.494,20.482,117.3615]
[1680477556135,10.0,20.496,20.482,117.3615]
[1680477556335,10.0,20.494,20.482,117.3615]
[1680477556542,17.0,20.495,20.482,117.3615]
[1680477556736,17.0,20.495,20.482,131.99235505]
[1680477560151,10.0,20.496,20.482,131.99235505]
[1680477560342,10.0,20.494,20.482,131.99235505]
[1680477560734,10.0,20.496,20.482,131.99235505]
[1680477561034,10.0,20.494,20.482,131.99235505]
[1680477561348,10.0,20.496,20.482,131.99235505]
[1680477561646,10.0,20.494,20.482,131.99235505]
[1680477561850,10.0,20.496,20.483,10.0]
[1680477562038,10.0,20.494,20.483,10.0]
[1680477562552,10.0,20.496,20.483,10.0]
[1680477562743,10.0,20.494,20.483,10.0]
[1680477563553,10.0,20.496,20.483,10.0]
[1680477563853,10.0,20.494,20.483,10.0]
[1680477564451,17.0,20.495,20.483,10.0]
[1680477565955,17.0,20.495,20.48,157.36213]
[1680477565956,17.0,20.495,20.481,10.0]
[1680477569353,17.0,20.495,20.481,24.46599259]
[1680477569549,17.0,20.495,20.481,10.0]
[1680477575064,10.0,20.496,20.481,10.0]
[1680477575249,10.0,20.494,20.481,10.0]
[1680477575450,17.0,20.493,20.481,10.0]
[1680477577568,17.0,20.493,20.48,134.68213]
[1680477580372,17.0,20.493,20.48,19.51463]
[1680477580580,9.92453435,20.491,20.48,19.51463]
[1680477580769,20.0,20.492,20.481,10.0]
[1680477582076,22.51,20.49,20.481,10.0]
[1680477582378,20.0,20.489,20.481,10.0]
[1680477583473,20.0,20.489,20.479,10.0]
[1680477588776,20.0,20.489,20.479,10.0]
[1680477592282,20.0,20.492,20.479,10.0]
[1680477600797,108.4702,20.498,20.48,46.97416023]
[1680477601004,37.25306198,20.5,20.481,10.0]
[1680477601293,20.0,20.499,20.483,10.0]
[1680477602301,10.0,20.497,20.483,10.0]
[1680477602503,17.0,20.498,20.483,10.0]
[1680477603386,20.0,20.499,20.483,10.0]
[1680477603588,22.65,20.5,20.485,10.0]
[1680477603886,118.1827,20.504,20.49,22.68]
[1680477604086,14.28156304,20.508,20.491,10.0]
[1680477604303,22.51,20.51,20.492,17.0]
[1680477604492,20.0,20.509,20.493,10.0]
[1680477604687,22.51,20.51,20.494,17.0]
[1680477604901,24.29416,20.511,20.495,10.0]
[1680477605101,24.29416,20.511,20.497,10.0]
[1680477605706,24.29416,20.511,20.499,10.0]
[1680477606101,20.0,20.51,20.499,10.0]
[1680477608713,10.0,20.509,20.495,10.0]
[1680477608919,17.0,20.508,20.495,10.0]
[1680477612508,10.0,20.508,20.495,10.0]
[1680477613511,17.0,20.509,20.495,10.0]
[1680477619610,17.0,20.509,20.495,29.502155]
[1680477623817,17.0,20.509,20.495,43.99898055]
[1680477630023,10.0,20.508,20.495,19.502155]
[1680477630321,10.0,20.506,20.495,19.502155]
[1680477630504,17.0,20.505,20.495,19.502155]
[1680477630710,10.0,20.504,20.495,19.502155]
[1680477630908,17.0,20.505,20.495,19.502155]
[1680477632321,10.0,20.506,20.495,19.502155]
[1680477632520,17.0,20.505,20.495,19.502155]
[1680477633823,10.0,20.506,20.495,19.502155]
[1680477634010,10.0,20.504,20.495,19.502155]
[1680477634411,10.0,20.502,20.495,19.502155]
[1680477634607,17.0,20.501,20.495,19.502155]
[1680477635411,17.0,20.501,20.488,10.0]
[1680477635612,17.0,20.501,20.49,10.0]
[1680477636016,10.0,20.502,20.49,10.0]
[1680477636232,10.0,20.5,20.49,10.0]
[1680477636408,10.0,20.502,20.49,10.0]
[1680477636612,17.0,20.501,20.49,10.0]
[1680477638809,10.0,20.501,20.49,10.0]
[1680477639013,10.0,20.499,20.488,10.0]
[1680477639324,10.0,20.501,20.49,10.0]
[1680477639521,17.0,20.5,20.49,10.0]
[1680477641837,10.0,20.501,20.49,10.0]
[1680477642032,10.0,20.499,20.488,17.29416023]
[1680477642217,10.0,20.499,20.49,10.0]
[1680477642532,10.0,20.501,20.49,10.0]
[1680477642829,10.0,20.499,20.49,29.507106]
[1680477643033,17.0,20.5,20.49,29.507106]
[1680477644038,10.0,20.501,20.49,29.507106]
[1680477644327,116.3729,20.504,20.49,29.507106]
[1680477644636,116.3729,20.504,20.49,36.80126623]
[1680477650736,17.0,20.503,20.49,36.80126623]
[1680477651038,27.0,20.503,20.49,36.80126623]
[1680477652342,17.0,20.503,20.49,36.80126623]
[1680477657021,17.0,20.503,20.49,17.29416023]
[1680477657841,116.3729,20.504,20.492,10.0]
[1680477661640,116.3729,20.504,20.489,19.508327]
[1680477661826,27.0,20.503,20.489,19.508327]
[1680477663235,17.0,20.503,20.49,10.0]
[1680477667747,17.0,20.503,20.49,17.29416023]
[1680477669349,16.5,20.503,20.49,17.29416023]
[1680477684468,116.3729,20.504,20.49,17.29416023]
[1680477684849,116.3729,20.504,20.492,10.0]
[1680477685162,42.67,20.51,20.494,10.0]
[1680477685361,42.67,20.51,20.495,17.0]
[1680477685549,42.67,20.51,20.496,10.0]
[1680477687157,42.67,20.51,20.496,17.29416023]
[1680477687752,57.6429423,20.51,20.496,17.29416023]
[1680477691471,42.67,20.51,20.496,17.29416023]
[1680477692169,20.0,20.51,20.496,17.29416023]
[1680477692468,20.0,20.509,20.496,17.29416023]
[1680477692770,20.0,20.509,20.496,10.0]
[1680477693165,10.0,20.512,20.496,10.0]
[1680477693166,10.0,20.51,20.496,10.0]
[1680477693461,20.0,20.509,20.496,10.0]
[1680477694062,20.0,20.512,20.498,10.0]
[1680477694864,10.0,20.511,20.498,10.0]
[1680477695069,20.0,20.51,20.498,10.0]
[1680477696075,10.0,20.511,20.498,10.0]
[1680477696256,20.0,20.51,20.498,10.0]
[1680477697073,10.0,20.511,20.498,10.0]
[1680477697257,20.0,20.51,20.498,10.0]
[1680477697752,46.39840579,20.519,20.498,17.29416023]
[1680477697958,28.16,20.52,20.501,10.0]
[1680477698473,28.16,20.52,20.503,10.0]
[1680477698671,28.16,20.52,20.504,17.0]
[1680477698857,28.16,20.52,20.505,10.0]
[1680477704262,28.16,20.52,20.507,10.0]
[1680477704263,10.0,20.518,20.507,10.0]
[1680477704466,28.16,20.52,20.507,10.0]
[1680477704667,10.0,20.518,20.507,10.0]
[1680477705378,10.0,20.519,20.507,10.0]
[1680477705775,28.16,20.52,20.507,10.0]
[1680477705971,10.0,20.518,20.507,10.0]
[1680477706172,20.0,20.519,20.507,10.0]
[1680477706782,20.0,20.519,20.508,17.0]
[1680477706966,10.0,20.519,20.509,10.0]
[1680477707367,10.0,20.519,20.505,10.0]
[1680477707763,10.0,20.519,20.5,10.0]
[1680477708482,10.0,20.517,20.5,10.0]
[1680477708681,10.0,20.515,20.5,10.0]
[1680477711983,10.0,20.517,20.5,10.0]
[1680477712174,10.0,20.515,20.5,10.0]
[1680477714793,10.0,20.517,20.5,10.0]
[1680477714998,10.0,20.515,20.5,10.0]
[1680477716285,10.0,20.517,20.5,10.0]
[1680477716471,10.0,20.515,20.5,10.0]
[1680477718579,10.0,20.517,20.5,10.0]
[1680477718777,10.0,20.515,20.5,10.0]
[1680477720675,17.0,20.516,20.5,10.0]
[1680477721074,10.0,20.514,20.5,10.0]
[1680477721481,108.4519,20.515,20.5,10.0]
[1680477734203,108.4519,20.515,20.502,10.0]
[1680477737408,108.4519,20.515,20.501,17.0]
[1680477738408,108.4519,20.515,20.502,10.0]
[1680477741914,108.4519,20.515,20.499,20.0]
[1680477742086,27.0,20.514,20.499,20.0]
[1680477742410,10.0,20.513,20.499,20.0]
[1680477742700,10.0,20.513,20.499,10.0]
[1680477745405,10.0,20.513,20.499,17.29416023]
[1680477749922,27.0,20.514,20.499,17.29416023]
[1680477750818,17.0,20.514,20.499,17.29416023]
[1680477756125,17.0,20.514,20.499,10.0]
[1680477756519,17.0,20.514,20.501,10.0]
[1680477757821,108.4519,20.515,20.501,10.0]
[1680477765434,108.4519,20.515,20.5,29.94416023]
[1680477765744,10.0,20.514,20.5,29.94416023]
[1680477770442,108.4519,20.515,20.501,10.0]
[1680477793660,108.4519,20.515,20.5,22.65]
[1680477793960,10.0,20.513,20.498,20.0]
[1680477794358,10.0,20.511,20.498,20.0]
[1680477794554,10.0,20.511,20.49,22.65]
[1680477794555,59.46,20.51,20.491,118.359]
[1680477794757,10.0,20.509,20.491,118.359]
[1680477794954,10.0,20.507,20.491,118.359]
[1680477803665,10.0,20.509,20.491,118.359]
[1680477803864,10.0,20.507,20.491,118.359]
[1680477804253,10.0,20.505,20.491,118.359]
[1680477804652,10.0,20.505,20.492,10.0]
[1680477804854,17.0,20.506,20.492,10.0]
[1680477809072,10.0,20.507,20.492,10.0]
[1680477809258,17.0,20.506,20.492,10.0]
[1680477813976,10.0,20.507,20.492,10.0]
[1680477814174,10.0,20.505,20.492,10.0]
[1680477814877,10.0,20.507,20.492,10.0]
[1680477815069,10.0,20.505,20.492,10.0]
[1680477816777,10.0,20.507,20.492,10.0]
[1680477816981,10.0,20.505,20.492,10.0]
[1680477818080,10.0,20.507,20.492,10.0]
[1680477818378,10.0,20.505,20.492,10.0]
[1680477818878,17.0,20.506,20.492,10.0]
[1680477824077,10.0,20.509,20.492,10.0]
[1680477824383,10.0,20.509,20.494,10.0]
[1680477825366,10.0,20.507,20.494,10.0]
[1680477826380,10.0,20.509,20.494,10.0]
[1680477833090,10.0,20.508,20.494,10.0]
[1680477834489,27.0,20.509,20.494,10.0]
[1680477834885,17.0,20.509,20.494,10.0]
[1680477840189,42.46,20.51,20.494,10.0]
[1680477840486,20.0,20.51,20.496,10.0]
[1680477840687,14.77134822,20.513,20.497,37.0]
[1680477840888,141.603,20.52,20.5,22.46]
[1680477841092,10.0,20.519,20.5,22.46]
[1680477841282,10.0,20.519,20.501,27.0]
[1680477841490,10.0,20.519,20.502,10.0]
[1680477841990,10.0,20.519,20.503,17.0]
[1680477842181,10.0,20.519,20.504,10.0]
[1680477842381,22.46,20.52,20.506,10.0]
[1680477842797,22.46,20.52,20.508,10.0]
[1680477842991,10.0,20.518,20.508,10.0]
[1680477843492,20.0,20.519,20.508,10.0]
[1680477843699,10.0,20.521,20.51,10.0]
[1680477844082,20.0,20.52,20.51,10.0]
[1680477845383,10.0,20.521,20.51,10.0]
[1680477845577,20.0,20.52,20.51,10.0]
[1680477846594,10.0,20.521,20.51,10.0]
[1680477846802,20.0,20.52,20.51,10.0]
[1680477847605,10.0,20.521,20.51,10.0]
[1680477847895,20.0,20.52,20.512,10.0]
[1680477848596,10.0,20.521,20.512,10.0]
[1680477848787,20.0,20.52,20.512,10.0]
[1680477849389,10.0,20.521,20.512,10.0]
[1680477849589,20.0,20.52,20.512,10.0]
[1680477849793,20.0,20.522,20.512,10.0]
[1680477850601,20.0,20.522,20.511,17.0]
[1680477852291,10.0,20.522,20.511,17.0]
[1680477852491,20.0,20.521,20.511,17.0]
[1680477854003,10.0,20.521,20.511,17.0]
[1680477854212,20.0,20.52,20.511,17.0]
[1680477855090,10.0,20.521,20.511,17.0]
[1680477855291,20.0,20.52,20.511,17.0]
[1680477855691,10.0,20.523,20.511,17.0]
[1680477855989,10.0,20.525,20.511,17.0]
[1680477856806,24.82742552,20.525,20.511,17.0]
[1680477856992,10.0,20.525,20.511,17.0]
[1680477859308,70.1175,20.526,20.512,10.0]
[1680477859489,70.1175,20.526,20.513,17.0]
[1680477859690,14.83793409,20.529,20.514,10.0]
[1680477859897,7.29416023,20.533,20.515,17.0]
[1680477860103,10.0,20.529,20.516,10.0]
[1680477860393,10.0,20.529,20.518,10.0]
[1680477861308,10.0,20.529,20.517,17.0]
[1680477862901,22.46,20.53,20.517,17.0]
[1680477863101,10.0,20.528,20.517,17.0]
[1680477864014,10.0,20.529,20.518,10.0]
[1680477865812,10.0,20.529,20.519,17.0]
[1680477866016,36.97307207,20.53,20.52,10.0]
[1680477866516,10.0,20.528,20.519,17.0]
[1680477867107,10.0,20.529,20.519,17.0]
[1680477868617,36.97307207,20.53,20.519,17.0]
[1680477868804,10.0,20.528,20.519,17.0]
[1680477869010,36.97307207,20.53,20.519,17.0]
[1680477869209,20.0,20.529,20.519,17.0]
[1680477874413,20.0,20.529,20.518,10.0]
[1680477874610,20.0,20.529,20.52,10.0]
[1680477874815,20.0,20.529,20.516,10.0]
[1680477875126,66.39860998,20.529,20.516,10.0]
[1680477880530,20.0,20.529,20.516,10.0]
[1680477880732,20.0,20.529,20.518,10.0]
[1680477881232,20.0,20.529,20.52,10.0]
[1680477885229,7.29416023,20.533,20.52,10.0]
[1680477885438,22.65,20.54,20.521,17.0]
[1680477885731,22.65,20.54,20.52,32.46]
[1680477886031,22.65,20.54,20.522,10.0]
[1680477886233,22.65,20.54,20.524,10.0]
[1680477886627,22.65,20.54,20.526,10.0]
[1680477887237,28.07,20.54,20.526,10.0]
[1680477893534,28.07,20.54,20.522,10.0]
[1680477893727,10.0,20.536,20.504,111.0266]
[1680477894037,137.8279,20.536,20.52,10.0]
[1680477897233,145.12206023,20.536,20.519,20.0]
[1680477897427,145.12206023,20.536,20.516,20.0]
[1680477897741,145.12206023,20.536,20.517,10.0]
[1680477897945,145.12206023,20.536,20.518,20.0]
[1680477898150,10.0,20.529,20.518,20.0]
[1680477899629,10.0,20.529,20.517,10.0]
[1680477900344,9.5,20.529,20.517,10.0]
[1680477900649,28.24,20.53,20.517,10.0]
[1680477900946,10.0,20.528,20.517,10.0]
[1680477901243,20.0,20.529,20.517,10.0]
[1680477902132,10.0,20.528,20.512,10.0]
[1680477902327,10.0,20.528,20.514,10.0]
[1680477903850,10.0,20.528,20.516,10.0]
[1680477906436,30.0,20.529,20.516,10.0]
[1680477907257,10.0,20.528,20.514,10.0]
[1680477908841,10.0,20.528,20.516,10.0]